[Event "Azerbaijan Men Championship 2024"]
[Site "Baku"]
[Date "2024.04.19"]
[Round "9.5"]
[White "Iskandarov, Misratdin"]
[Black "Ibrahimli, Murad"]
[Result "0-1"]
[ECO "C77"]
[WhiteElo "2538"]
[BlackElo "2396"]
[Annotator "TA"]
[PlyCount "116"]
[EventDate "2024.04.11"]
[EventType "swiss"]
[EventCountry "AZE"]
[SourceTitle "playchess.com"]
[Source "ChessBase"]
[SourceQuality "1"]
[TimeControl "40/5400+30:1800+30"]

{[%evp 29,116,8,27,34,20,17,20,0,0,0,0,-8,0,-8,0,0,-4,-22,-25,-21,0,0,0,0,0,0,0,0,0,0,0,0,-7,-4,-4,0,-2,-6,0,0,10,0,15,18,33,30,90,15,8,3,8,0,44,0,0,0,0,0,0,0,103,-77,0,0,0,0,0,0,0,0,0,-97,-94,-97,-94,-264,-264,-264,-264,-261,-261,-278,-276,-272,-272,-272,-272,-445,-425]} 1. e4 {[%emt 0:00:04]} e5 {[%emt 0:00:57]} 2. Nf3 {[%emt 0:00:08]} Nc6 {[%emt 0:00:05]} 3. Bb5 {[%emt 0:00:08]} a6 {[%emt 0:00:14]} 4. Ba4 {[%emt 0:00:07]} Nf6 {[%emt 0:00:07]} 5. d3 {[%emt 0:00:05]} b5 {[%emt 0:00:12]} 6. Bb3 {[%emt 0:00:05]} Bc5 {[%emt 0:01:55]} 7. Nc3 {[%emt 0:00:10] 7.c3 is the modern continuation.} d6 {[%emt 0:00:53] C77: Ruy Lopez: 3...a6 4 Ba4 Nf6, unusual lines.} 8. Nd5 {[%emt 0:00:08]} h6 {[%emt 0:11:00]} 9. c3 {[%emt 0:00:45]} Rb8 {[%emt 0:02:20]} 10. O-O {[%emt 0:01:41]} O-O {[%emt 0:01:01]} 11. h3 {[%emt 0:03:43]} Ba7 {[%emt 0:07:34]} 12. Re1 {[%emt 0:04:10]} Re8 {[%emt 0:12:24]} 13. a4 {[%emt 0:07:14]} b4 {[%emt 0:02:16]} 14. a5 {[%emt 0:00:31]} bxc3 {[%emt 0:02:25]} 15. bxc3 {[%emt 0:00:08]} Nxd5 {[%emt 0:13:43]} 16. Bxd5 {[%emt 0:00:49]} Ne7 {[%emt 0:00:20]} 17. Ba2 $146 {[%emt 0:00:40]} ({Predecessor:} 17. Bc4 Ng6 18. d4 Qf6 19. Qd3 exd4 20. cxd4 Nh4 21. Nxh4 Qxh4 22. Ra2 Rb4 23. Rae2 {1-0 Vachier Lagrave,M (2760)-Mamedyarov,S (2759) Zagreb SuperUnited Blitz 2022 (12)}) 17... Ng6 {[%emt 0:01:03]} 18. d4 {[%emt 0:03:11]} Be6 {[%emt 0:03:41]} 19. Qd3 {[%emt 0:04:30]} Bxa2 {[%emt 0:03:28]} 20. Rxa2 {[%emt 0:00:18]} Qc8 {[%emt 0:03:04]} 21. Ree2 {[%emt 0:13:14]} exd4 {[%emt 0:03:46]} 22. cxd4 {[%emt 0:05:09]} c5 {[%emt 0:00:07]} 23. dxc5 {[%emt 0:08:05]} Bxc5 {[%emt 0:02:46]} 24. Rac2 {[%emt 0:00:39]} Rb5 {[%emt 0:04:27]} 25. Nd4 {[%emt 0:13:54]} Rb1 {[%emt 0:06:41]} 26. Qc3 $1 {[%emt 0:01:53]} Qb7 {[%emt 0:06:06]} 27. Nf5 {[%emt 0:01:36]} f6 {[%emt 0:05:34]} 28. Qg3 {[%emt 0:10:25]} (28. Qc4+ Kh7 29. Kh2 Rb5 $15) 28... Kh7 {[%emt 0:00:50]} 29. h4 {[%emt 0:07:24]} Ne5 {[%emt 0:02:31]} (29... Rxe4 30. h5 (30. Nxd6 $2 {loses.} Rxe2 31. Rxc5 Qb4 $19) 30... Bxf2+ 31. Kxf2 Rxe2+ 32. Rxe2 $18) 30. h5 {[%emt 0:02:35]} Qf7 {[%emt 0:00:04]} 31. Qh3 {[%emt 0:01:44]} Qb3 {[%emt 0:03:05]} 32. Qxb3 {[%emt 0:04:02]} Rxb3 {[%emt 0:00:01]} 33. g3 {[%emt 0:04:11]} Nd3 {[%emt 0:00:13]} 34. Be3 {[%emt 0:00:46]} Re5 {[%emt 0:01:45]} 35. Kg2 {[%emt 0:01:41]} Ra3 {[%emt 0:00:47]} 36. Bxc5 {[%emt 0:01:04]} dxc5 {[%emt 0:00:05]} 37. Re3 {[%emt 0:00:32]} Rb3 {[%emt 0:00:41]} (37... Re6 $11 {remains equal.}) 38. g4 {[%emt 0:01:22]} (38. f4 $16 Re8 39. Kf1) 38... Re8 $1 $11 {[%emt 0:00:24]} 39. Kg3 {[%emt 0:00:31]} Reb8 {[%emt 0:00:41]} 40. f4 {[%emt 0:00:00]} Re8 {[%emt 0:00:00]} 41. Nd6 {[%emt 0:04:33]} Reb8 $1 {[%emt 0:04:33]} 42. Nf5 {[%emt 0:11:55]} R8b4 {[%emt 0:10:49]} 43. Rd2 {[%emt 0:01:59]} c4 {[%emt 0:01:41]} 44. Nd4 {[%emt 0:01:19]} Nc5 {[%emt 0:06:15]} (44... Rb1 $11 45. e5 fxe5 46. fxe5 Nxe5) 45. Kf3 $2 {[%emt 0:05:26]} (45. Nxb3 $16 {is forced if you want to stay better.} cxb3 46. Rb2) 45... Rxe3+ {[%emt 0:03:27]} (45... Rb1 $17 {Strongly threatening ...Nb3.} 46. e5 Rf1+ 47. Kg2 c3 (47... Rxf4 48. e6 $11) 48. Rxc3 Ne4 49. Kxf1 Nxd2+ 50. Ke2 Rxd4) 46. Kxe3 $11 {[%emt 0:00:05]} c3 {[%emt 0:01:50]} 47. Rc2 {[%emt 0:00:38]} Rc4 {[%emt 0:00:02]} 48. e5 {[%emt 0:00:28]} fxe5 {[%emt 0:00:04]} 49. fxe5 {[%emt 0:00:03]} Kg8 {[%emt 0:00:05]} 50. Rf2 {[%emt 0:01:53] [#]} (50. Nf5 $11 {keeps the balance.}) 50... Ne6 $1 $17 {[%emt 0:01:09]} 51. Ne2 {[%emt 0:04:12]} c2 {[%emt 0:00:25]} 52. Kd2 $2 {[%emt 0:00:04]} (52. Nc1 $17) 52... Rxg4 $19 {[%emt 0:00:18]} 53. Kxc2 {[%emt 0:00:06]} Rg5 {[%emt 0:00:07]} 54. Rh2 {[%emt 0:00:41]} Rxe5 {[%emt 0:00:06]} 55. Kd3 {[%emt 0:00:18]} Rxa5 {[%emt 0:00:04]} 56. Rh1 {[%emt 0:00:19]} Re5 {[%emt 0:00:16]} 57. Rh4 {[%emt 0:00:17]} a5 {[%emt 0:00:07]} 58. Nc3 $2 {[%emt 0:00:08]} (58. Rh2) 58... Rxh5 {[%emt 0:08:56]} 0-1

[Event "Azerbaijan Men Championship 2024"]
[Site "Baku"]
[Date "2024.04.19"]
[Round "9.6"]
[White "Hamidov, Allahverdi"]
[Black "Sadikhov, Ulvi"]
[Result "0-1"]
[ECO "A53"]
[WhiteElo "2091"]
[BlackElo "2497"]
[Annotator "TA"]
[PlyCount "80"]
[EventDate "2024.04.11"]
[EventType "swiss"]
[EventCountry "AZE"]
[SourceTitle "playchess.com"]
[Source "ChessBase"]
[SourceQuality "1"]
[TimeControl "40/5400+30:1800+30"]

{[%evp 9,80,32,35,32,54,35,48,39,56,55,55,64,61,60,105,87,180,125,146,139,161,144,201,189,187,208,309,308,310,308,285,181,241,159,278,278,325,353,439,337,335,124,268,0,0,-131,-141,-122,-126,-128,-114,-137,0,-215,-146,-316,-331,-449,-453,-435,-418,-787,-732,-864,-827,-871,-482,-518,-528,-530,-519,-517,-507]} 1. d4 {[%emt 0:00:10][%cal Bd2d4,Bd4d5][%mdl 32]} d6 {[%emt 0:00:07]} 2. c4 {[%emt 0:00:07]} e5 {[%emt 0:00:46]} 3. d5 {[%emt 0:00:05]} Nf6 {[%emt 0:02:06]} 4. Nc3 {[%emt 0:00:15]} e4 {[%emt 0:00:04]} 5. g3 {[%emt 0:03:04]} Bf5 {[%emt 0:03:31]} 6. Bg2 {[%emt 0:02:26]} Nbd7 {[%emt 0:00:26]} 7. Nh3 {[%emt 0:01:39]} h6 {[%emt 0:00:05]} 8. O-O {[%emt 0:01:55] White is slightly better.} Ne5 {[%emt 0:05:37][%cal Od8d7]} 9. f3 {[%emt 0:01:28]} exf3 {[%emt 0:02:52]} 10. exf3 {[%emt 0:00:23]} Be7 {[%emt 0:00:42]} 11. Nf2 {[%emt 0:01:46]} Qd7 {[%emt 0:09:02]} 12. b3 {[%emt 0:06:10]} g5 {[%emt 0:13:35]} (12... h5 $16) 13. Bb2 {[%emt 0:03:15]} (13. f4 $18 gxf4 14. Bxf4) 13... h5 $16 {[%emt 0:05:14]} 14. Re1 {[%emt 0:19:58]} Kf8 {[%emt 0:07:07]} 15. Nb5 {[%emt 0:04:08]} a6 {[%emt 0:02:59]} (15... h4 $16 16. g4 a6) 16. Nd4 $18 {[%emt 0:00:32]} Re8 {[%emt 0:01:33]} 17. Qd2 {[%emt 0:04:44]} Bg6 {[%emt 0:06:15]} (17... g4 $142 18. f4 Nf3+ 19. Bxf3 (19. Nxf3 gxf3 20. Bxf3 Rh6 $18) 19... gxf3) 18. f4 {[%emt 0:13:38]} (18. Qxg5 Ne4 19. Qe3 (19. Nxe4 $2 Bxg5 20. Nxg5 Nd3 $19) 19... Nxf2 20. Qxf2 Nd3 $11) 18... gxf4 {[%emt 0:00:13]} 19. gxf4 {[%emt 0:01:35]} (19. Qxf4 h4 $16) 19... Neg4 {[%emt 0:00:15]} 20. Nh3 {[%emt 0:12:17]} h4 {[%emt 0:03:09]} (20... Rg8 {might work better.}) 21. f5 {[%emt 0:01:28]} Bxf5 {[%emt 0:01:39]} (21... Bh5 $16 22. Nf4 Ne5) 22. Rf1 $1 {[%emt 0:01:08]} Bh7 {[%emt 0:09:12]} 23. Ng5 $1 {[%emt 0:03:03]} Bg6 {[%emt 0:00:05]} 24. Bh3 {[%emt 0:11:33][%cal Od4e6] Hoping for Nde6+!} Rh5 {[%emt 0:00:04]} 25. Ne2 $2 {[%emt 0:04:18]} (25. Rae1 $18 {is more deadly.}) 25... Kg7 {[%emt 0:06:31]} (25... Nxd5 $2 26. Nxf7 Bxf7 27. cxd5 $18) (25... Bd8 $16 26. Bxf6 (26. Rxf6 Rxe2 $11) 26... Bxf6 27. Rxf6 Rxe2 28. Nh7+ (28. Qxe2 Rxg5 29. Bxg4 Rxg4+ 30. Kf1 Re4 $11) 28... Bxh7 29. Qxe2 Rg5) 26. Rf3 $2 {[%emt 0:01:23]} (26. Rf2 $18) 26... Bd8 $1 $11 {[%emt 0:01:50][%cal Oe8e2] White must now prevent ...Rxe2! Chess con chili.} 27. Raf1 {[%emt 0:01:01] [#]} (27. Nxf7 $11 Bxf7 (27... Kxf7 28. Bxf6 Bxf6 29. Raf1 $11) 28. Nf4) 27... Rxe2 $1 $17 {[%emt 0:02:08][%mdl 512]} 28. Qxe2 {[%emt 0:00:07]} Rxg5 {[%emt 0:00:04]} 29. Qd2 {[%emt 0:00:42]} Kh6 {[%emt 0:02:29]} 30. Bc1 {[%emt 0:00:36] [#]} Ne4 {[%emt 0:02:56]} ({Black should play} 30... Nh7 $1 $17 {Strongly threatening ...Ne3+.} 31. Qd4 f5 32. Bxg5+ Bxg5) 31. Qg2 $2 {[%emt 0:00:22] [#]} (31. Qd4 $1 $11 {and White stays safe.} Ne5+ 32. Kh1) 31... Kh5 $1 $19 {[%emt 0:03:37]} 32. Bxg5 $2 {[%emt 0:00:21]} (32. Rf4 $17 {was necessary.}) 32... Nxg5 {[%emt 0:00:16] Excellent horsemanship.} ({Not} 32... Bxg5 33. Qxg4+ Qxg4+ 34. Bxg4+ Kxg4 35. h3+ Kh5 36. Rxf7 $17) 33. Rf4 {[%emt 0:00:24][%cal Rh3g4]} Nxh3+ {[%emt 0:00:16]} 34. Qxh3 {[%emt 0:00:01]} Bg5 {[%emt 0:00:26]} 35. R4f3 {[%emt 0:00:31] White is weak on the dark squares} (35. Qg2 $142) 35... Qe7 {[%emt 0:00:19] ...Qe5 is the strong threat. Black is clearly winning.} 36. Qg2 {[%emt 0:00:11]} Be4 {[%emt 0:01:03] Threatens to win with ...Qe5.} 37. Qe2 {[%emt 0:01:25]} Bxf3 {[%emt 0:00:16]} 38. Qxf3 {[%emt 0:00:03]} Qe3+ {[%emt 0:00:32]} 39. Qxe3 {[%emt 0:00:01]} Bxe3+ {[%emt 0:00:06]} ({Weaker is} 39... Nxe3 40. Rxf7 c5 41. dxc6 bxc6 42. Kf2 $17) 40. Kg2 {[%emt 0:00:00]} Ne5 {[%emt 0:00:00] Quite a comeback for Black.   Weighted Error Value: White=0.86/Black=0.39.  Loses game:     	White=2     	---        Missed win:     	White=2     	---        Mistake:       	White=3     	Black=7      Inaccurate:     	White=3     	Black=1      OK:         	White=6     	Black=9      Best:        	White=3     	Black=2      Strong:       	White=2     	Black=2      Brilliant:      	---       	Black=1} 0-1

[Event "Azerbaijan Men Championship 2024"]
[Site "Baku"]
[Date "2024.04.19"]
[Round "9.7"]
[White "Ahmad, Khagan"]
[Black "Rustamov, Rustam"]
[Result "1-0"]
[ECO "A14"]
[WhiteElo "2321"]
[BlackElo "2261"]
[Annotator "TA"]
[PlyCount "121"]
[EventDate "2024.04.11"]
[EventType "swiss"]
[EventCountry "AZE"]
[SourceTitle "playchess.com"]
[Source "ChessBase"]
[SourceQuality "1"]
[TimeControl "40/5400+30:1800+30"]

{[%evp 19,121,32,59,51,74,62,71,49,69,20,7,7,6,11,16,0,0,10,20,20,31,25,33,23,35,25,30,27,28,23,40,28,51,52,46,26,16,7,13,10,12,10,70,56,56,55,67,28,72,78,83,75,83,72,82,45,81,56,91,91,91,91,91,91,97,102,118,38,38,38,38,33,33,0,0,0,127,120,127,120,120,120,120,134,789,773,1290,1245,813,288,285,251,29988,29989,29993,29994,29995,29996,29996,29997,29997,29998,29998,29999]} 1. Nf3 {[%emt 0:00:05]} Nf6 {[%emt 0:00:24]} 2. g3 {[%emt 0:00:05]} e6 {[%emt 0:00:06]} 3. Bg2 {[%emt 0:00:04]} d5 {[%emt 0:00:04]} 4. O-O {[%emt 0:00:05]} Be7 {[%emt 0:00:03]} 5. c4 {[%emt 0:00:04]} O-O {[%emt 0:00:16]} 6. b3 {[%emt 0:00:07]} c5 {[%emt 0:03:53]} 7. cxd5 {[%emt 0:00:42]} Nxd5 {[%emt 0:00:30]} 8. Bb2 {[%emt 0:00:07]} Bf6 {[%emt 0:01:46]} 9. d4 {[%emt 0:00:37]} cxd4 {[%emt 0:08:38]} 10. Nxd4 {[%emt 0:00:20]} Nc6 {[%emt 0:01:25]} 11. Nxc6 {[%emt 0:00:25]} bxc6 {[%emt 0:02:00]} 12. Bxf6 {[%emt 0:00:51]} Qxf6 {[%emt 0:00:31]} 13. Nd2 {[%emt 0:06:23]} Ba6 {[%emt 0:04:21]} 14. Qc2 {[%emt 0:05:28]} (14. Ne4 $14 Qe5 15. Bf3) 14... Qc3 $11 {[%emt 0:04:05]} 15. Rfc1 {[%emt 0:01:47]} Qxc2 {[%emt 0:03:13]} 16. Rxc2 {[%emt 0:00:03]} Nb4 {[%emt 0:01:17]} 17. Rc3 {[%emt 0:00:48]} Bxe2 {[%emt 0:01:22]} 18. a3 {[%emt 0:01:09]} Nd5 {[%emt 0:07:18]} 19. Rxc6 {[%emt 0:00:17]} Rfd8 {[%emt 0:01:57]} 20. Re1 {[%emt 0:01:15]} Bd3 {[%emt 0:02:26]} 21. Rec1 {[%emt 0:01:14]} h6 {[%emt 0:01:41]} 22. Nc4 {[%emt 0:02:18]} Rab8 {[%emt 0:12:24]} 23. b4 {[%emt 0:01:17]} Bxc4 {[%emt 0:05:13]} 24. R6xc4 {[%emt 0:01:25]} g6 {[%emt 0:01:50]} 25. Rc5 {[%emt 0:01:17]} Rb6 {[%emt 0:00:56]} 26. Ra5 {[%emt 0:02:05]} Rd7 {[%emt 0:00:48]} 27. Bf3 {[%emt 0:03:17]} Ne7 {[%emt 0:01:04]} 28. Rd1 {[%emt 0:06:06]} Rxd1+ {[%emt 0:03:26]} 29. Bxd1 {[%emt 0:03:18][%mdl 4096] Endgame. KRB-KRN} Nc6 {[%emt 0:00:12]} 30. Rc5 {[%emt 0:01:10]} a5 {[%emt 0:00:15]} 31. b5 $14 {[%emt 0:06:26] White is more active.} Nd4 {[%emt 0:00:17]} 32. a4 {[%emt 0:00:30]} Rd6 $1 {[%emt 0:01:21][%cal Od4b5]} 33. Rc1 {[%emt 0:00:09]} h5 {[%emt 0:01:05]} 34. Rb1 {[%emt 0:01:16]} Rb6 {[%emt 0:00:21]} 35. f4 {[%emt 0:00:39]} Kf8 {[%emt 0:00:20]} 36. Kf2 {[%emt 0:00:25]} Ke7 {[%emt 0:00:13]} 37. Rc1 {[%emt 0:02:02] Threatens to win with Rc7+.} Rd6 {[%emt 0:00:56]} 38. Rc7+ {[%emt 0:06:06]} Rd7 {[%emt 0:03:20]} 39. Rxd7+ $1 {[%emt 0:00:24]} Kxd7 $16 {[%emt 0:00:02] KB-KN} 40. Ke3 {[%emt 0:00:00]} Nf5+ {[%emt 0:00:00]} 41. Ke4 {[%emt 0:00:53]} Kd6 {[%emt 0:02:40]} 42. Bf3 {[%emt 0:17:08]} f6 {[%emt 0:01:02]} 43. Bd1 {[%emt 0:02:04]} (43. Kd3 $16) 43... Ne7 $1 $14 {[%emt 0:02:33]} 44. Kd4 {[%emt 0:10:32]} Nc8 {[%emt 0:00:37]} 45. h4 {[%emt 0:01:33]} f5 {[%emt 0:04:56]} 46. Bf3 {[%emt 0:01:15] Strongly threatening Bc6.} (46. Bc2 $5) 46... Nb6 {[%emt 0:00:23]} 47. Bc6 {[%emt 0:00:54] Black must now prevent Be8.} Nxa4 {[%emt 0:00:54]} (47... Ke7 $1 $11) 48. Be8 $16 {[%emt 0:00:09]} Nc5 {[%emt 0:01:11]} 49. Bxg6 {[%emt 0:01:24]} a4 {[%emt 0:00:12][%cal Ba5a4,Ba4a3][%mdl 32]} 50. Bxh5 {[%emt 0:01:04]} a3 {[%emt 0:02:35] [#] ( -> ...a2)} 51. Kc3 $1 {[%emt 0:00:02] Hoping for Be8.} Ne4+ $2 {[%emt 0:00:05][%mdl 8192]} (51... Na4+ $16 52. Kb3 a2 53. Kxa2 (53. Kxa4 a1=Q+ 54. Kb3 Qb1+ 55. Kc3 Qe1+ 56. Kd3 Qxg3+ 57. Ke2 Qh2+ 58. Kf3 Qh3+ 59. Ke2 Qxh4 $19) 53... Nc3+ 54. Kb3 Nxb5) 52. Kb3 $18 {[%emt 0:00:05]} Nxg3 {[%emt 0:00:14] [#]} 53. Be8 $1 {[%emt 0:01:37]} e5 {[%emt 0:01:54]} 54. h5 $2 {[%emt 0:06:30]} (54. Kxa3 exf4 55. h5 f3 $11) (54. fxe5+ Kxe5 55. b6 (55. Kxa3 Ke6 $18)) 54... e4 {[%emt 0:01:53]} 55. h6 $1 {[%emt 0:01:06][%cal Oh6h7] White wants to mate with h7!} (55. Kxa3 e3 56. h6 e2 $11) 55... e3 $2 {[%emt 0:00:17]} (55... a2 $18 56. Kxa2 e3) 56. h7 $1 {[%emt 0:00:03]} (56. Kxa3 e2 57. h7 e1=Q $11) 56... e2 {[%emt 0:00:08]} 57. h8=Q {[%emt 0:00:03][%csl Gf4][%cal Rh8e5]} (57. h8=B e1=Q (57... e1=R 58. Be5+ Kc5 59. Kxa3 $15) 58. Bc6 Kc5 59. Bg7 Qb4+ 60. Kc2 Kc4 (60... Qxf4 61. Bf6 Qc4+ 62. Kd2 Qe2+ 63. Kc3 Qb2+ 64. Kd3 Qxf6 65. Ke3 a2 66. Kf2 a1=Q 67. Bf3 Qf1+ 68. Kxg3 Qg1+ 69. Bg2 Qg5+ 70. Kh3 Q1xg2#) (60... Qxf4 {is a self mate.} 61. Bd5 Kxd5 62. Kb3 Qe4 63. Bh8 Qb1+ 64. Kxa3 Ne4 65. Bg7 Kc4 66. Bb2 Nc3 67. Bxc3 Qb3#)) 57... e1=Q {[%emt 0:00:08]} 58. Qd4+ {[%emt 0:00:06]} (58. Kxa3 Qc1+ 59. Ka4 Qxf4+ 60. Ka5 Qd2+ 61. Ka6 Ne4 $14) 58... Kc7 {[%emt 0:00:42]} 59. Qd7+ {[%emt 0:00:10]} Kb8 {[%emt 0:00:09]} 60. Qd8+ {[%emt 0:00:04]} Ka7 {[%emt 0:00:11]} 61. Qc7+ {[%emt 0:00:04]} 1-0

[Event "Azerbaijan Men Championship 2024"]
[Site "Baku"]
[Date "2024.04.19"]
[Round "9.8"]
[White "Guliyev, Namig"]
[Black "Sevdimaliyev, Urfan"]
[Result "1-0"]
[ECO "B72"]
[WhiteElo "2509"]
[BlackElo "2320"]
[Annotator "TA"]
[PlyCount "102"]
[EventDate "2024.04.11"]
[EventType "swiss"]
[EventCountry "AZE"]
[SourceTitle "playchess.com"]
[Source "ChessBase"]
[SourceQuality "1"]
[TimeControl "40/5400+30:1800+30"]

{[%evp 25,102,9,5,9,22,16,16,7,15,18,18,6,25,0,7,0,9,-4,9,0,30,27,27,10,29,0,7,8,0,6,19,19,29,36,90,35,96,102,100,99,169,122,116,130,129,99,180,175,188,195,179,156,350,364,393,378,375,364,350,235,1112,1088,1135,1066,990,876,935,875,882,845,828,755,1718,1874,1857,1610,1697,1668,1337]} 1. e4 {[%emt 0:00:05]} c5 {[%emt 0:02:48]} 2. Nf3 {[%emt 0:00:07]} Nc6 {[%emt 0:00:20]} 3. d4 {[%emt 0:01:45]} cxd4 {[%emt 0:00:05]} 4. Nxd4 {[%emt 0:00:04]} g6 {[%emt 0:01:28]} 5. Nc3 {[%emt 0:00:06]} Bg7 {[%emt 0:00:10]} 6. Be3 {[%emt 0:00:06]} Nf6 {[%emt 0:00:23]} 7. Bc4 {[%emt 0:00:28]} O-O {[%emt 0:00:32]} 8. Bb3 {[%emt 0:00:04]} d6 {[%emt 0:01:46]} 9. h3 {[%emt 0:02:12]} Bd7 {[%emt 0:01:33]} 10. O-O {[%emt 0:00:21]} Nxd4 {[%emt 0:01:44]} 11. Bxd4 {[%emt 0:00:07]} Bc6 {[%emt 0:00:09]} 12. Qd3 {[%emt 0:03:11]} Nd7 {[%emt 0:04:16] B72: Sicilian Dragon: 6 Be3, lines with h3+Bc4 and sidelines.} 13. Rfe1 {[%emt 0:00:44]} (13. Bxg7 $5) 13... Bxd4 {[%emt 0:13:40]} 14. Qxd4 {[%emt 0:00:09]} Qa5 {[%emt 0:00:24]} (14... Qb6 {simplifies} 15. Qxb6 Nxb6 16. Nd5 Bxd5 17. exd5 Rfe8) 15. Nd5 {[%emt 0:00:36]} Rfe8 {[%emt 0:02:43]} 16. Rad1 $146 {[%emt 0:02:07]} ({Predecessor:} 16. h4 Bxd5 17. exd5 Qc5 18. Qf4 h5 19. Re3 Ne5 20. Rae1 Rac8 21. c3 {½-½ Yu,S (2522)-Cheparinov,I (2450) Linares Anibal op 09th 2002 (9)}) 16... Rad8 {[%emt 0:11:33]} 17. c3 {[%emt 0:02:46]} Qc5 {[%emt 0:02:26]} 18. Qd2 {[%emt 0:00:11]} e6 {[%emt 0:07:27]} 19. Nf4 {[%emt 0:04:18]} (19. Nc7 Re7 20. Qxd6 Qxd6 21. Rxd6 Rc8 22. Nxe6 fxe6 23. Bxe6+ Kf8 $16) 19... Qg5 {[%emt 0:06:42]} 20. g3 {[%emt 0:03:39]} (20. Qxd6 $2 {perishes.} Ne5 21. h4 Qxf4 $19) 20... Ne5 {[%emt 0:07:39]} 21. Qe3 {[%emt 0:01:18]} Qf6 {[%emt 0:00:52]} 22. Kg2 {[%emt 0:00:50]} b6 {[%emt 0:05:49]} 23. Ne2 {[%emt 0:01:13]} Bb7 {[%emt 0:05:04]} 24. Nd4 {[%emt 0:05:48]} d5 {[%emt 0:09:25]} 25. f4 {[%emt 0:05:38]} Nc4 {[%emt 0:01:08]} 26. Bxc4 {[%emt 0:00:40]} dxc4 {[%emt 0:00:02]} 27. Nf3 {[%emt 0:00:11]} Qe7 {[%emt 0:01:28]} 28. Kf2 {[%emt 0:00:23]} Qc7 {[%emt 0:02:42]} 29. g4 {[%emt 0:02:30]} Qc6 {[%emt 0:02:51]} (29... Rd3 $14 30. Rxd3 cxd3) 30. Rd4 {[%emt 0:01:51]} (30. Ne5 $16 Qa4 31. Rd4) 30... Rxd4 {[%emt 0:01:41]} (30... Qc7 $14) 31. Qxd4 $16 {[%emt 0:00:16]} ({Reject} 31. cxd4 b5 $11) 31... Qc7 {[%emt 0:00:21] [#]} 32. Qf6 $1 {[%emt 0:00:47]} Qd6 {[%emt 0:02:09]} (32... Bc6 $16 {was called for.} 33. Ne5 Rd8) 33. Re2 {[%emt 0:03:35]} (33. Ne5 $18 Rf8 34. g5 (34. Nxc4 Qd3 $11)) 33... Qc5+ {[%emt 0:01:48]} 34. Kg3 {[%emt 0:01:08]} Qe7 {[%emt 0:02:43]} 35. g5 {[%emt 0:00:42]} Qxf6 {[%emt 0:00:52]} (35... h5 $16 {might work better.}) 36. gxf6 $18 {[%emt 0:00:06]} h6 {[%emt 0:00:30]} 37. h4 {[%emt 0:00:13]} Rd8 {[%emt 0:00:25]} 38. Rd2 {[%emt 0:00:08]} Rxd2 $2 {[%emt 0:00:59]} (38... Rd3 $16) 39. Nxd2 $18 {[%emt 0:00:12]} b5 {[%emt 0:00:18]} 40. Kf3 {[%emt 0:00:00]} Kh7 {[%emt 0:00:00]} 41. Ke3 {[%emt 0:00:28]} e5 {[%emt 0:02:55]} 42. a4 {[%emt 0:02:11]} bxa4 $2 {[%emt 0:02:19]} (42... exf4+ 43. Kxf4 a6) 43. Nxc4 $18 {[%emt 0:00:16]} exf4+ {[%emt 0:01:26]} 44. Kxf4 {[%emt 0:00:12]} Kg8 {[%emt 0:00:48]} 45. Nd6 {[%emt 0:02:47]} Bc6 {[%emt 0:00:07]} 46. c4 {[%emt 0:00:06]} Kf8 {[%emt 0:00:17]} 47. c5 {[%emt 0:00:08]} Bd7 {[%emt 0:00:28]} 48. Ke5 {[%emt 0:02:07]} g5 {[%emt 0:02:10]} 49. h5 {[%emt 0:00:50]} a6 {[%emt 0:02:21]} 50. Kd5 {[%emt 0:00:09]} g4 {[%emt 0:00:46] [#]} 51. Kd4 $1 {[%emt 0:00:06]} g3 {[%emt 0:02:14]} 1-0

[Event "Azerbaijan Men Championship 2024"]
[Site "Baku"]
[Date "2024.04.19"]
[Round "9.9"]
[White "Aslanov, Umid"]
[Black "Suleymanli, Suleyman"]
[Result "1/2-1/2"]
[ECO "D27"]
[WhiteElo "2239"]
[BlackElo "2246"]
[Annotator "TA"]
[PlyCount "82"]
[EventDate "2024.04.11"]
[EventType "swiss"]
[EventCountry "AZE"]
[SourceTitle "playchess.com"]
[Source "ChessBase"]
[SourceQuality "1"]
[TimeControl "40/5400+30:1800+30"]

{[%evp 16,82,16,8,14,-8,-13,-31,-20,-42,-11,-5,-5,-12,-10,-12,-14,-20,-12,-7,-4,-7,0,-16,0,-8,0,-4,0,0,0,0,0,0,0,0,0,0,0,-4,0,0,0,-2,-4,-8,0,0,0,0,0,0,0,0,0,0,0,0,0,0,0,0,0,0,0,0,0,0,0]} 1. Nf3 {[%emt 0:00:18]} d5 {[%emt 0:00:09]} 2. d4 {[%emt 0:00:23]} Nf6 {[%emt 0:00:05]} 3. e3 {[%emt 0:00:53]} e6 {[%emt 0:00:15]} 4. c4 {[%emt 0:00:56]} dxc4 {[%emt 0:00:19]} 5. Bxc4 {[%emt 0:00:53]} c5 {[%emt 0:01:36]} 6. O-O {[%emt 0:00:53]} a6 {[%emt 0:00:49]} 7. a4 {[%emt 0:00:32]} Nc6 {[%emt 0:00:54]} 8. Nc3 {[%emt 0:02:49]} Be7 {[%emt 0:03:33]} 9. dxc5 {[%emt 0:01:30]} O-O {[%emt 0:01:27]} 10. Qxd8 {[%emt 0:02:02]} Rxd8 {[%emt 0:01:02]} 11. b3 {[%emt 0:02:01]} Bxc5 {[%emt 0:00:29] Black is slightly better.} 12. Bb2 {[%emt 0:01:07]} b6 {[%emt 0:05:46]} 13. Rfd1 {[%emt 0:01:18] The position is equal.} Bb7 {[%emt 0:01:34]} 14. Rxd8+ {[%emt 0:00:53]} Rxd8 {[%emt 0:00:23]} 15. Be2 {[%emt 0:03:01]} Na5 {[%emt 0:02:36]} 16. Rd1 {[%emt 0:00:15]} Rxd1+ {[%emt 0:02:11]} 17. Bxd1 {[%emt 0:00:05]} Nc6 {[%emt 0:00:19]} 18. Be2 {[%emt 0:00:21]} Na5 {[%emt 0:00:02]} 19. Bd1 {[%emt 0:00:45]} Nc6 {[%emt 0:00:53]} 20. Be2 {[%emt 0:00:20]} Na5 {[%emt 0:00:41]} 21. Nd2 {[%emt 0:00:06]} Nd5 {[%emt 0:00:25]} 22. Nxd5 {[%emt 0:01:27]} Bxd5 {[%emt 0:00:25]} 23. Bxa6 {[%emt 0:00:55]} Nxb3 {[%emt 0:00:05]} 24. Nxb3 {[%emt 0:00:06]} Bxb3 $11 {[%emt 0:00:02][%mdl 4096] Endgame. KBB-KBB} 25. Bb5 {[%emt 0:00:07]} f6 {[%emt 0:00:06]} 26. Kf1 {[%emt 0:00:22]} Bd5 {[%emt 0:00:04]} 27. Bd3 {[%emt 0:00:39]} Bb3 {[%emt 0:00:19]} 28. Bb5 {[%emt 0:00:14]} Bd5 {[%emt 0:00:01]} 29. Bd3 {[%emt 0:00:07]} e5 {[%emt 0:00:07]} 30. e4 {[%emt 0:00:39]} Bb3 {[%emt 0:00:01]} 31. Bb5 {[%emt 0:00:08]} Kf8 {[%emt 0:00:11]} 32. Bc3 {[%emt 0:00:22]} Ke7 {[%emt 0:00:09]} 33. a5 {[%emt 0:00:14]} bxa5 {[%emt 0:00:32]} 34. Bxa5 {[%emt 0:00:03]} Bc2 {[%emt 0:00:14]} 35. f3 {[%emt 0:00:05]} Bb3 {[%emt 0:00:35]} 36. Ke2 {[%emt 0:00:13]} Kd6 {[%emt 0:00:17]} 37. Bd2 {[%emt 0:00:25]} Be6 {[%emt 0:00:01]} 38. Ba5 {[%emt 0:00:09]} Bd4 {[%emt 0:00:31]} 39. Bb4+ {[%emt 0:00:09]} Bc5 {[%emt 0:00:01]} 40. Ba5 {[%emt 0:00:00]} Bd4 {[%emt 0:00:00]} 41. Bb4+ {[%emt 1:53:15]} Bc5 {[%emt 1:51:51] Weighted Error Value: White=0.04 (flawless) /Black=0.03 (flawless) .  Inaccurate:     	---       	Black=1      OK:         	White=16    	Black=9      Best:        	White=2     	---} 1/2-1/2